bitfinex-derivatives/quotes_ETHF0:USTF0_20241013
["timestamp","ask_amount","ask_price","bid_price","bid_amount"]
[1728812299805,1.59590489,2466.0,2465.9,6.58909705]
[1728812300110,1.59590489,2466.0,2465.9,6.79485856]
[1728812300310,1.59590489,2466.0,2465.9,7.90824908]
[1728812301512,1.59590489,2466.0,2465.9,4.70044908]
[1728812301813,1.59590489,2466.0,2465.9,7.90824908]
[1728812302608,1.59590489,2466.0,2465.9,10.03569602]
[1728812303610,1.59590489,2466.0,2465.9,13.63829256]
[1728812303611,1.59735853,2466.0,2465.9,13.63829256]
[1728812303807,1.06488723,2466.0,2465.9,16.85050455]
[1728812304007,1.06488723,2466.0,2465.9,14.54792185]
[1728812304311,1.06488723,2466.1,2466.0,0.40557]
[1728812304509,1.06474356,2466.1,2466.0,6.11257817]
[1728812304714,2.00235853,2466.2,2466.1,0.40555]
[1728812304914,2.2052359,2466.2,2466.1,6.40019032]
[1728812305117,2.00235853,2466.2,2466.1,6.40019032]
[1728812305817,2.00235853,2466.2,2466.1,6.19730492]
[1728812306215,2.00235853,2466.2,2466.1,13.49337383]
[1728812306216,1.06455466,2466.2,2466.1,13.49337383]
[1728812306519,1.06455466,2466.3,2466.2,0.40554]
[1728812306710,1.06455466,2466.3,2466.2,16.67019731]
[1728812306909,1.06455466,2466.4,2466.3,0.40552]
[1728812307210,1.06455466,2466.4,2466.3,7.0080591]
[1728812307416,1.06455466,2466.4,2466.3,7.58753436]
[1728812307711,1.06455466,2466.4,2466.3,5.4638594]
[1728812308109,1.59735853,2466.5,2466.4,0.40551]
[1728812308110,1.06455466,2466.5,2466.4,0.40551]
[1728812308311,1.06455466,2466.5,2466.4,5.27797223]
[1728812310806,1.06455466,2466.5,2466.4,4.87246223]
[1728812311006,1.06455466,2466.5,2466.4,4.14237658]
[1728812311218,1.44655466,2466.5,2466.4,4.14237658]
[1728812311410,1.44655466,2466.5,2466.4,2.42339052]
[1728812311610,1.692,2466.5,2466.4,3.48405413]
[1728812312117,2.75655466,2466.5,2466.4,2.49744976]
[1728812312307,2.75655466,2466.5,2466.4,1.06066361]
[1728812315419,1.692,2466.5,2466.4,1.06066361]
[1728812316113,0.382,2466.5,2466.4,1.06066361]
[1728812316507,0.382,2466.5,2466.4,2.37066361]
[1728812316716,0.382,2466.5,2466.4,2.77617361]
[1728812317520,0.382,2466.5,2466.4,1.71551]
[1728812318721,1.97935853,2466.5,2466.4,1.71551]
[1728812319020,2.18221584,2466.5,2466.4,1.71551]
[1728812319218,1.97935853,2466.5,2466.4,1.71551]
[1728812321613,1.59735853,2466.5,2466.4,1.71551]
[1728812322122,1.59735853,2466.5,2466.4,2.11451]
[1728812322419,1.06232043,2466.5,2466.4,2.11451]
[1728812323719,1.06232043,2466.5,2466.4,2.52381]
[1728812326726,3.18102043,2466.7,2466.4,3.17896361]
[1728812326919,3.18102043,2466.7,2466.6,1.71547]
[1728812326920,1.48392043,2466.7,2466.6,1.71547]
[1728812327222,0.4216,2466.7,2466.6,1.71547]
[1728812327727,0.4216,2466.7,2466.6,2.10047]
[1728812328323,0.4216,2466.7,2466.6,5.30827]
[1728812328519,0.4216,2466.7,2466.6,2.10047]
[1728812329130,0.4216,2466.7,2466.6,3.16113361]
[1728812329433,0.4216,2466.7,2466.6,2.10047]
[1728812329626,0.4216,2466.7,2466.6,3.16113361]
[1728812330232,0.4216,2466.7,2466.6,2.10047]
[1728812331032,0.4216,2466.7,2466.6,3.16113361]
[1728812331632,0.4216,2466.7,2466.6,2.10047]
[1728812331824,0.4216,2466.7,2466.6,3.16113361]
[1728812332832,0.4216,2466.7,2466.6,2.10047]
[1728812333231,0.4216,2466.7,2466.6,3.16113361]
[1728812333533,0.4216,2466.7,2466.6,2.10047]
[1728812334935,1.48392043,2466.7,2466.6,2.10047]
[1728812335443,0.4216,2466.7,2466.6,2.10047]
[1728812335637,1.48392043,2466.7,2466.6,2.10047]
[1728812336247,0.4216,2466.7,2466.6,2.10047]
[1728812336637,1.48392043,2466.7,2466.6,2.10047]
[1728812341748,0.4216,2466.7,2466.6,3.16113361]
[1728812345255,0.4216,2466.7,2466.6,4.276626]
[1728812346052,0.4216,2466.7,2466.6,4.27672986]
[1728812346449,0.4216,2466.7,2466.6,3.16113361]
[1728812346649,0.4216,2466.7,2466.6,4.27692767]
[1728812347556,0.4216,2466.7,2466.6,4.80846568]
[1728812347953,0.4216,2466.7,2466.6,4.80862259]
[1728812348450,0.4216,2466.7,2466.6,4.9353934]
[1728812348860,1.48392043,2466.7,2466.6,2.22724081]
[1728812349251,1.48392043,2466.7,2466.6,2.73432627]
[1728812349855,1.48392043,2466.7,2466.6,2.22724081]
[1728812350358,1.48392043,2466.7,2466.6,2.734329]
[1728812350559,0.4216,2466.7,2466.6,3.79525142]
[1728812351260,2.01895853,2466.7,2466.6,4.01798048]
[1728812351962,2.01895853,2466.7,2466.6,4.01801486]
[1728812352257,2.01895853,2466.7,2466.6,3.79525208]
[1728812352464,2.01895853,2466.7,2466.6,4.22085587]
[1728812352959,1.59735853,2466.7,2466.6,4.22085587]
[1728812353155,1.59735853,2466.8,2466.6,3.81538587]
[1728812353355,1.59735853,2466.8,2466.7,2.98248908]
[1728812353553,1.80019105,2466.8,2466.7,2.98248908]
[1728812354852,0.20283252,2466.8,2466.7,2.98248908]
[1728812355055,2.33070571,2466.9,2466.7,2.98248908]
[1728812355265,1.79750599,2466.8,2466.7,0.81586]
[1728812355458,1.79750599,2466.8,2466.7,2.9825668]
[1728812355651,1.59467347,2466.8,2466.7,2.98256398]
[1728812356954,1.59467347,2466.8,2466.7,5.6914669]
[1728812356955,1.06310757,2466.8,2466.7,5.6914669]
[1728812358859,1.06310757,2466.8,2466.7,5.05761489]
[1728812359254,1.06310757,2466.8,2466.7,4.83476292]
[1728812359862,1.06310757,2466.9,2466.8,0.40544]
[1728812360065,1.06310757,2466.9,2466.8,6.32211278]
[1728812360362,1.06310757,2466.9,2466.8,7.6321066]
[1728812360854,1.06310757,2466.9,2466.8,4.4243066]
[1728812365463,1.06310757,2466.9,2466.8,4.0188666]
[1728812366057,1.06310757,2466.9,2466.8,4.52594428]
[1728812366355,1.06310757,2466.9,2466.8,4.74883431]
[1728812366957,1.59467347,2466.9,2466.8,3.83811882]
[1728812367162,1.59467347,2466.9,2466.8,4.12230581]
[1728812367376,1.59467347,2466.9,2466.8,4.97904419]
[1728812367573,1.59467347,2466.9,2466.8,5.50945259]
[1728812367765,1.59467347,2466.9,2466.8,5.91489259]
[1728812368071,1.59467347,2466.9,2466.8,5.50945259]
[1728812369670,1.59467347,2466.9,2466.8,5.50999101]
[1728812370873,1.59467347,2466.9,2466.8,5.50978395]
[1728812372074,2.64484336,2466.9,2466.8,2.80037893]
[1728812372274,4.66203979,2466.9,2466.8,2.80037893]
[1728812372667,2.64484336,2466.9,2466.8,3.20581893]
[1728812372867,2.64484336,2466.9,2466.8,2.57197132]
[1728812373378,4.66228225,2466.9,2466.8,2.57197132]
[1728812373873,4.66228225,2466.9,2466.8,2.44520296]
[1728812374073,4.66228225,2466.9,2466.8,1.93812951]
[1728812374267,4.66228225,2466.9,2466.8,1.71544]
[1728812374474,2.64484336,2466.9,2466.8,1.71544]
[1728812374671,2.8476692,2466.9,2466.8,1.71544]
[1728812374868,4.66234042,2466.9,2466.8,1.71544]
[1728812375069,4.66235148,2466.9,2466.8,1.71544]
[1728812377879,0.20282695,2466.9,2466.8,1.84220505]
[1728812378077,0.20282695,2466.9,2466.8,2.22480505]
[1728812378567,0.20282695,2466.9,2466.8,2.73186162]
[1728812378768,3.46134336,2467.0,2466.9,0.40542]
[1728812378974,3.46134336,2467.0,2466.9,4.42478427]
[1728812378975,4.22721808,2467.0,2466.9,4.42478427]
[1728812379174,2.41254939,2467.0,2466.9,4.42478427]
[1728812379375,2.41254939,2467.0,2466.9,4.42478064]
[1728812381075,2.41254939,2467.0,2466.9,5.05859865]
[1728812381382,2.41254939,2467.0,2466.9,5.28123252]
[1728812381879,2.01694939,2467.0,2466.9,5.28122658]
[1728812382076,2.01694939,2467.0,2466.9,5.28122811]
[1728812382270,2.01694939,2467.0,2466.9,4.64740439]
[1728812382477,2.01694939,2467.0,2466.9,4.77416777]
[1728812382673,2.01694939,2467.0,2466.9,4.5515441]
[1728812382878,2.01694939,2467.0,2466.9,4.7741665]
[1728812383175,2.01694939,2467.0,2466.9,5.28122005]
[1728812383578,2.01694939,2467.0,2466.9,5.7882739]
[1728812384084,2.01694939,2467.0,2466.9,5.78803391]
[1728812386185,3.06574336,2467.0,2466.9,3.07891326]
[1728812386383,5.08296438,2467.0,2466.9,3.07891326]
[1728812388781,5.08296408,2467.0,2466.9,3.07891326]
[1728812389085,5.08296408,2467.0,2466.9,2.44509595]
[1728812389286,5.08296408,2467.0,2466.9,2.22247355]
[1728812392082,5.08296408,2467.0,2466.9,2.64217355]
[1728812392282,0.62372498,2467.0,2466.9,2.64217355]
[1728812392587,2.43817532,2467.0,2466.9,2.64217355]
[1728812393090,2.43817532,2467.0,2466.9,2.13512]
[1728812393479,3.06574336,2467.0,2466.9,2.13512]
[1728812393684,3.26856439,2467.0,2466.9,2.13512]
[1728812393978,5.0830634,2467.0,2466.9,2.13512]
[1728812394184,5.0830634,2467.0,2466.9,4.84431365]
[1728812394185,2.01681874,2467.0,2466.9,4.84431365]
[1728812396084,2.01681874,2467.0,2466.9,5.478137]
[1728812396488,2.01681874,2467.0,2466.9,5.70077371]
[1728812398395,2.01681874,2467.0,2466.9,5.70086247]
[1728812398587,2.01681874,2467.0,2466.9,4.10869099]
[1728812398789,2.01681874,2467.0,2466.9,5.70151415]
[1728812399189,2.01681874,2467.0,2466.9,5.90433209]
[1728812399586,1.59591874,2467.0,2466.9,4.31150893]
[1728812399786,1.59591874,2467.0,2466.9,5.90436415]
[1728812400491,1.59591874,2467.0,2466.9,4.31151026]
[1728812400696,1.59591874,2467.0,2466.9,4.3114933]
[1728812402491,1.59591874,2467.0,2466.9,8.68685872]
[1728812402691,1.98141874,2467.1,2466.9,10.40511368]
[1728812402885,1.06402153,2467.0,2466.9,6.15659496]
[1728812403089,1.06402153,2467.0,2466.9,9.50051641]
[1728812403494,1.06402153,2467.0,2466.9,9.4922402]
[1728812403697,1.06402153,2467.0,2466.9,10.48097933]
[1728812403898,1.59591874,2467.0,2466.9,6.96704284]
[1728812404198,1.59591874,2467.0,2466.9,7.87561398]
[1728812405396,1.59591874,2467.0,2466.9,7.11387603]
[1728812405586,1.59591874,2467.0,2466.9,5.18135691]
[1728812405792,2.19044061,2467.0,2466.9,3.28355691]
[1728812406095,0.59452187,2467.0,2466.9,4.87672149]
[1728812406296,0.59453151,2467.0,2466.9,4.8770381]
[1728812406596,4.03242317,2467.0,2466.9,3.03609438]
[1728812406790,6.36354151,2467.0,2466.9,1.06222086]
[1728812407895,6.36354151,2467.0,2466.8,1.59316458]
[1728812407896,0.40542,2466.9,2466.8,1.06222086]
[1728812408094,0.99845151,2466.9,2466.8,1.06222086]
[1728812408301,7.18010503,2466.9,2466.7,2.37222086]
[1728812408597,0.59113151,2466.8,2466.7,2.37222086]
[1728812408802,0.59113151,2466.8,2466.7,4.34629542]
[1728812409196,2.40579302,2466.8,2466.7,1.65950124]
[1728812409397,3.04804776,2466.8,2466.7,1.4367778]
[1728812409597,5.06554078,2466.8,2466.7,1.4367778]
[1728812411102,5.06514305,2466.8,2466.7,1.31]
[1728812415802,4.86162472,2466.8,2466.7,1.31]
[1728812416003,5.0644698,2466.8,2466.7,1.31]
[1728812416204,2.18621516,2466.8,2466.7,2.37222086]
[1728812417507,1.98337008,2466.8,2466.7,2.37222086]
[1728812418412,1.98337008,2466.8,2466.7,1.31]
[1728812419410,0.40546,2466.7,2466.6,1.06222086]
[1728812419710,7.7666341,2466.7,2466.6,1.06222086]
[1728812419911,7.7666341,2466.7,2466.5,1.06222086]
[1728812420212,1.06320248,2466.6,2466.5,1.06222086]
[1728812420506,1.06320248,2466.6,2466.5,2.17907629]
[1728812421308,1.06320248,2466.6,2466.5,1.06222086]
[1728812422104,1.5947741,2466.6,2466.4,5.96832086]
[1728812422305,0.3912,2466.5,2466.4,5.96832086]
[1728812422509,0.3912,2466.5,2466.4,3.87727948]
[1728812422709,1.45421146,2466.5,2466.4,7.08507948]
[1728812423413,0.3912,2466.5,2466.4,5.96832086]
[1728812424314,0.59405496,2466.5,2466.4,4.9061]
[1728812425208,0.3912,2466.5,2466.4,4.9061]
[1728812425401,0.59405489,2466.5,2466.4,4.9061]
[1728812428003,0.59405489,2466.5,2466.4,5.31161]
[1728812428402,1.98478001,2466.5,2466.4,5.31161]
[1728812428605,2.1876349,2466.5,2466.4,5.31161]
[1728812428806,2.1876349,2466.5,2466.4,4.9061]
[1728812429209,2.1876349,2466.5,2466.4,5.3282]
[1728812429511,2.1876349,2466.5,2466.4,2.1204]
[1728812429721,2.1876349,2466.5,2466.4,5.3282]
[1728812429908,2.18763483,2466.5,2466.4,5.3282]
[1728812430108,2.18763483,2466.5,2466.4,5.7404]
[1728812431409,0.3912,2466.5,2466.4,5.7404]
[1728812431614,0.3912,2466.5,2466.4,6.80262086]
[1728812432311,0.3912,2466.5,2466.4,5.7404]
[1728812432912,0.3912,2466.5,2466.4,6.14591]
[1728812436213,1.062272,2466.6,2466.4,7.20813086]
[1728812436418,1.062272,2466.6,2466.5,1.31]
[1728812436718,1.455972,2466.7,2466.5,1.31]
[1728812439318,0.20285107,2466.6,2466.5,1.31]
[1728812442617,2.32961117,2466.6,2466.4,5.7404]
[1728812442818,1.59380176,2466.5,2466.4,5.7404]
[1728812443016,0.20285107,2466.5,2466.4,5.7404]
[1728812443219,2.32961117,2466.6,2466.4,5.7404]
[1728812443523,0.20285107,2466.5,2466.4,2.5326]
[1728812443723,2.32961117,2466.6,2466.4,5.7404]
[1728812443929,0.20285107,2466.5,2466.4,5.7404]
[1728812444229,0.20285443,2466.5,2466.4,5.7404]
[1728812444416,2.32961453,2466.6,2466.4,5.7404]
[1728812445025,2.75171453,2466.6,2466.4,2.5326]
[1728812445327,0.20285443,2466.5,2466.4,5.7404]
[1728812445526,2.32961453,2466.5,2466.4,5.7404]
[1728812446227,2.32961453,2466.5,2466.4,4.0083]
[1728812446428,1.06279918,2466.5,2466.4,5.07052086]
[1728812450024,1.06279918,2466.5,2466.4,6.38052086]
[1728812450325,1.06279918,2466.5,2466.4,7.4975943]
[1728812450519,7.56695427,2466.5,2466.4,1.06222086]
[1728812450715,0.40551,2466.4,2466.3,1.06222086]
[1728812450920,7.11677789,2466.4,2466.3,1.06222086]
[1728812451124,0.40552,2466.3,2466.2,1.06222086]
[1728812451321,3.10824257,2466.3,2466.2,1.06222086]
[1728812451630,7.56816257,2466.3,2466.2,1.06222086]
[1728812451822,7.95296257,2466.3,2466.2,1.06222086]
[1728812452726,7.95296257,2466.3,2466.1,1.06222086]
[1728812452727,7.54744257,2466.3,2466.1,1.06222086]
[1728812452926,2.77917653,2466.2,2466.1,1.06222086]
[1728812453127,2.77917653,2466.2,2466.1,1.11755522]
[1728812453330,2.77917653,2466.2,2466.1,2.17977745]
[1728812453623,2.77917653,2466.2,2466.1,2.71057165]
[1728812453823,6.83437653,2466.2,2466.1,2.71057165]
[1728812454624,7.36611707,2466.2,2466.1,1.06211839]
[1728812455322,5.77074,2466.2,2466.1,1.06211839]
[1728812456025,0.40555,2466.1,2466.0,1.06211839]
[1728812456227,6.16385,2466.1,2466.0,1.06211839]
[1728812456433,7.22720454,2466.1,2466.0,1.06211839]
[1728812458131,7.22720454,2466.1,2465.9,2.76681839]
[1728812458331,3.17200454,2466.1,2465.9,2.76681839]
[1728812461225,1.45645454,2466.1,2466.0,1.31]
[1728812461423,1.45645454,2466.1,2466.0,1.7014]
[1728812461629,1.98847707,2466.1,2466.0,2.0994]
[1728812462833,0.3931,2466.1,2466.0,2.0994]
[1728812463036,1.98847707,2466.1,2466.0,2.0994]
[1728812463232,0.3931,2466.1,2466.0,0.7894]
[1728812463530,1.98847707,2466.1,2466.0,0.7894]
[1728812464528,3.29847707,2466.1,2466.0,0.7894]
[1728812466639,1.7031,2466.1,2466.0,0.7894]
[1728812467436,1.7031,2466.1,2465.9,1.7047]
[1728812467437,1.7031,2466.1,2465.9,0.3947]
[1728812467636,1.06236756,2466.0,2465.9,0.3947]
[1728812468634,2.37236756,2466.0,2465.9,0.3947]
[1728812469639,1.31,2466.0,2465.9,0.3947]
[1728812476750,2.37236756,2466.0,2465.9,0.3947]
[1728812478638,1.31,2466.0,2465.9,0.3947]
[1728812478842,1.71557,2466.0,2465.9,0.3947]
[1728812479746,1.31,2466.0,2465.9,0.3947]
[1728812481447,1.06236756,2466.1,2465.9,1.7047]
[1728812481750,1.06236756,2466.1,2465.9,2.11028]
[1728812484561,3.31091707,2466.2,2465.9,2.11028]
[1728812484562,2.77790756,2466.2,2465.9,2.11028]
[1728812485562,1.06236756,2466.1,2465.9,2.11028]
[1728812486350,1.06236756,2466.1,2465.9,3.17239839]
[1728812486855,2.37236756,2466.1,2465.9,2.76681839]
[1728812487955,0.4237,2466.0,2465.9,2.76681839]
[1728812489950,0.4237,2466.0,2465.9,1.45681839]
[1728812490658,0.4237,2466.0,2465.9,1.06211839]
[1728812490659,2.13927,2466.0,2465.9,1.06211839]
[1728812490855,0.40559,2465.9,2465.8,4.26991839]
[1728812491157,2.77795756,2465.9,2465.8,4.26991839]
[1728812491347,3.31096707,2465.9,2465.8,3.2078]
[1728812492152,0.4056,2465.8,2465.6,1.46521839]
[1728812492353,2.77895499,2465.7,2465.6,1.46521839]
[1728812492561,3.20055499,2465.7,2465.6,1.46521839]
[1728812492961,3.20055499,2465.7,2465.6,0.4031]
[1728812493159,2.79493499,2465.7,2465.6,0.4031]
[1728812493557,3.32697707,2465.7,2465.6,1.46521839]
[1728812493862,3.73259707,2465.7,2465.6,1.46521839]
[1728812495367,3.93552812,2465.7,2465.5,1.06211839]
[1728812495664,1.0637551,2465.6,2465.5,1.06211839]
[1728812495864,1.0637551,2465.6,2465.5,2.18515495]
[1728812496160,3.73259707,2465.7,2465.5,1.06211839]
[1728812496361,1.59537707,2465.6,2465.5,1.06211839]
[1728812496558,1.54627707,2465.6,2465.5,1.06211839]
[1728812497263,2.13722,2465.7,2465.5,1.06211839]
[1728812498963,1.31,2465.6,2465.5,1.06211839]
[1728812499365,0.82722,2465.7,2465.5,2.37211839]
[1728812499366,1.7316,2465.7,2465.5,2.37211839]
[1728812499865,2.13722,2465.7,2465.5,2.37211839]
[1728812504369,2.13722,2465.7,2465.5,1.31]
[1728812506168,2.13722,2465.7,2465.4,6.40891839]
[1728812506563,2.13722,2465.7,2465.4,3.20111839]
[1728812506766,2.13722,2465.7,2465.4,6.40891839]
[1728812511864,2.13722,2465.7,2465.4,3.20111839]
[1728812512066,1.7316,2465.7,2465.4,6.40891839]
[1728812512271,1.31,2465.5,2465.4,5.09891839]
[1728812512472,1.31,2465.5,2465.4,6.22069112]
[1728812513475,1.31,2465.5,2465.4,3.01289112]
[1728812513771,1.31,2465.5,2465.4,6.22069112]
[1728812513982,1.31,2465.5,2465.4,4.0368]
[1728812519077,1.31,2465.5,2465.4,0.829]
[1728812519279,1.31,2465.5,2465.4,4.0368]
[1728812520885,1.71565,2465.5,2465.4,4.0368]
[1728812521184,1.31,2465.5,2465.4,4.0368]
[1728812521970,1.31,2465.5,2465.4,5.09891839]
[1728812524783,1.31,2465.5,2465.4,1.89111839]
[1728812524983,1.31,2465.5,2465.4,5.09891839]
[1728812525985,1.31,2465.5,2465.4,1.89111839]
[1728812526285,1.31,2465.5,2465.4,5.09891839]
[1728812526478,1.31,2465.5,2465.4,1.89111839]
[1728812526679,1.31,2465.5,2465.4,5.09891839]
[1728812527177,1.31,2465.5,2465.4,1.89111839]
[1728812527884,1.31,2465.5,2465.4,5.09891839]
[1728812528381,1.31,2465.5,2465.4,6.34824254]
[1728812528585,1.31,2465.5,2465.4,6.34826917]
[1728812528886,1.31,2465.5,2465.4,5.22575108]
[1728812529380,1.31,2465.5,2465.4,2.01795108]
[1728812529685,1.31,2465.5,2465.4,5.22575108]
[1728812529884,1.31,2465.5,2465.4,5.44824237]
[1728812530080,1.31,2465.5,2465.4,5.85391237]
[1728812530286,1.31,2465.5,2465.4,7.07834632]
[1728812530989,1.31,2465.5,2465.4,6.57104206]
[1728812531285,1.31,2465.5,2465.4,7.48404194]
[1728812531888,1.31,2465.5,2465.4,7.60941813]
[1728812534284,1.31,2465.5,2465.4,7.81234941]
[1728812535377,1.31,2465.5,2465.4,7.38731625]
[1728812536186,1.31,2465.5,2465.4,9.51099121]
[1728812537087,1.31,2465.5,2465.4,6.30319121]
[1728812537284,1.31,2465.5,2465.4,11.76007509]
[1728812538086,1.31,2465.5,2465.4,8.55227509]
[1728812538285,1.31,2465.5,2465.4,8.55451085]
[1728812538495,1.31,2465.5,2465.4,11.76231085]
[1728812538688,1.31,2465.5,2465.4,11.76231035]
[1728812539683,1.31,2465.5,2465.4,8.55451035]
[1728812539879,1.31,2465.5,2465.4,11.76231035]
[1728812542499,1.31,2465.5,2465.4,8.55451035]
[1728812542701,1.31,2465.5,2465.4,11.76231035]
[1728812542893,1.31,2465.5,2465.4,9.53456854]
[1728812543098,1.31,2465.5,2465.4,8.70178758]
[1728812543294,1.31,2465.5,2465.4,11.76286364]
[1728812543797,4.2639801,2465.7,2465.4,8.55506364]
[1728812543992,4.2639801,2465.7,2465.6,1.59415128]
[1728812544191,4.46691146,2465.7,2465.6,3.57587249]
[1728812546697,4.46691146,2465.7,2465.6,3.57587246]
[1728812547994,4.46691139,2465.7,2465.6,3.57637119]
[1728812550602,4.46691139,2465.7,2465.6,3.44953913]
[1728812550898,4.46691139,2465.7,2465.6,3.57637106]
[1728812552099,2.34015129,2465.7,2465.6,3.57637106]
[1728812552898,2.34015132,2465.7,2465.6,3.57639346]
[1728812553791,2.34015132,2465.7,2465.6,2.31482169]
[1728812553792,6.80220627,2465.7,2465.6,2.31482169]
[1728812553991,10.85820627,2465.7,2465.6,2.31482169]
[1728812554197,10.85820627,2465.7,2465.6,1.06279318]
[1728812555293,8.85296776,2465.7,2465.6,1.06279318]
[1728812555999,10.85825888,2465.7,2465.6,1.06279318]
[1728812557804,8.85296776,2465.7,2465.6,1.06279318]
[1728812558395,0.40565,2465.5,2465.4,3.2078]
[1728812558599,1.71565,2465.5,2465.4,3.2078]
[1728812558803,1.71565,2465.5,2465.4,3.33464232]
[1728812559101,1.71565,2465.5,2465.4,4.46000657]
[1728812559102,3.84610128,2465.5,2465.4,4.46000657]
[1728812559404,4.04904778,2465.5,2465.4,6.05437153]
[1728812560401,8.10504778,2465.5,2465.4,2.71972921]
[1728812560906,6.81420546,2465.5,2465.4,1.06277001]
[1728812561401,8.94388916,2465.5,2465.4,1.06277001]
[1728812561798,6.81420546,2465.5,2465.4,1.06277001]
[1728812562203,8.94387343,2465.5,2465.4,1.06277001]
[1728812563398,8.53822343,2465.5,2465.3,2.65713497]
[1728812563599,2.34092546,2465.4,2465.3,1.06277001]
[1728812563805,2.34092546,2465.4,2465.3,2.18756575]
[1728812565101,1.93525546,2465.4,2465.3,2.18756575]
[1728812565303,2.34092546,2465.4,2465.3,2.18756575]
[1728812565608,2.34092937,2465.4,2465.3,2.18737509]
[1728812566105,2.34092937,2465.4,2465.3,2.18737287]
[1728812566505,3.93740515,2465.4,2465.3,1.06277001]
[1728812568812,2.34092937,2465.4,2465.3,1.06277001]
[1728812570507,3.93699526,2465.4,2465.2,1.88377001]
[1728812570697,1.31,2465.3,2465.2,1.88377001]
[1728812570900,1.31,2465.3,2465.2,3.00804044]
[1728812575212,1.31,2465.3,2465.2,1.88377001]
[1728812575509,1.31,2465.3,2465.2,3.00781658]
[1728812576210,1.31,2465.3,2465.2,1.88377001]
[1728812576401,1.31,2465.3,2465.2,1.46727001]
[1728812576606,3.31175478,2465.3,2465.2,1.06277001]
[1728812576810,0.4057,2465.2,2465.1,1.48057001]
[1728812577005,1.7157,2465.2,2465.1,2.60467333]
[1728812577199,1.7157,2465.2,2465.1,1.48057001]
[1728812578912,2.1383,2465.2,2465.1,1.48057001]
[1728812579907,2.1383,2465.2,2465.1,0.4178]
[1728812580207,0.40572,2465.1,2465.0,4.27057001]
[1728812580408,2.11422,2465.1,2465.0,5.39455309]
[1728812580910,1.7085,2465.1,2465.0,5.39339236]
[1728812582704,2.11422,2465.1,2465.0,5.39339236]
[1728812583310,2.11422,2465.1,2465.0,4.26940928]
[1728812584612,2.11422,2465.1,2465.0,5.39316091]
[1728812585005,2.11422,2465.1,2465.0,4.26940928]
[1728812585310,2.11422,2465.1,2465.0,1.06160928]
[1728812591814,1.7085,2465.1,2465.0,1.06160928]
[1728812592214,1.7085,2465.1,2465.0,2.18545772]
[1728812593207,1.7085,2465.1,2465.0,2.18552872]
[1728812595812,1.7085,2465.1,2465.0,1.12391944]
[1728812596013,1.7085,2465.1,2465.0,2.1856461]
[1728812596219,5.33746797,2465.4,2465.0,2.1856461]
[1728812596220,1.59606478,2465.3,2465.1,0.40571]
[1728812596513,1.31,2465.3,2465.2,1.89300136]
[1728812596720,1.31,2465.3,2465.2,2.29470136]
[1728812597019,1.31,2465.3,2465.2,3.41868125]
[1728812597323,1.31,2465.3,2465.2,2.29470136]
[1728812597508,2.90606478,2465.3,2465.2,2.29470136]
[1728812598521,2.90606478,2465.3,2465.2,3.41906304]
[1728812598921,2.90606478,2465.3,2465.2,2.29470136]
[1728812599310,1.59606478,2465.3,2465.2,2.29470136]
[1728812599512,1.59606478,2465.3,2465.2,3.41934897]
[1728812599817,2.90606478,2465.3,2465.2,3.41934897]
[1728812600410,3.10903024,2465.3,2465.2,3.41934897]
[1728812602920,3.10903038,2465.3,2465.2,3.41950056]
[1728812605207,3.10903038,2465.3,2465.2,2.3578992]
[1728812605621,3.10903038,2465.3,2465.2,3.95226416]
[1728812605921,3.10903038,2465.3,2465.2,2.3578992]
[1728812606119,3.10903038,2465.3,2465.2,3.95226416]
[1728812607816,3.10903037,2465.3,2465.2,3.95249109]
[1728812608414,1.79903037,2465.3,2465.2,5.66819109]
[1728812608620,1.59606478,2465.4,2465.2,8.98677966]
[1728812608822,1.59606478,2465.4,2465.3,11.64200542]
[1728812608823,1.79901056,2465.4,2465.3,11.64200542]
[1728812609120,3.10901056,2465.4,2465.3,6.27600542]
[1728812609321,3.10901056,2465.4,2465.3,10.83939317]
[1728812610924,2.90606478,2465.4,2465.3,10.83938374]
[1728812611417,2.90606478,2465.4,2465.3,10.83927766]
[1728812611719,2.90606478,2465.4,2465.3,11.24496766]
[1728812612217,2.90606478,2465.4,2465.3,10.83927766]
[1728812613624,1.31,2465.4,2465.3,11.24496766]
[1728812614122,1.31,2465.4,2465.3,10.83927766]
[1728812614326,2.90606478,2465.4,2465.3,10.83927766]
[1728812614514,2.90606478,2465.4,2465.3,10.33192329]
[1728812615314,2.90606478,2465.4,2465.3,10.10927823]
[1728812615520,1.31,2465.4,2465.3,10.33180147]
[1728812615721,1.31,2465.4,2465.3,10.83915426]
[1728812616223,2.3742086,2465.4,2465.3,10.10927823]
[1728812618224,2.3742086,2465.4,2465.3,6.05327823]
[1728812618829,2.3742086,2465.4,2465.3,6.90147806]
[1728812619023,2.3742086,2465.4,2465.3,10.10854528]
[1728812619221,2.3742086,2465.4,2465.3,9.98170686]
[1728812620027,2.3742086,2465.4,2465.3,5.92570686]
[1728812620329,2.3742086,2465.4,2465.3,6.33139686]
[1728812620528,2.3742086,2465.4,2465.3,7.76823433]
[1728812620729,2.3742086,2465.4,2465.3,11.82423433]
[1728812620924,2.3742086,2465.4,2465.3,12.04669144]
[1728812621120,2.3742086,2465.4,2465.3,7.99069144]
[1728812621526,2.3742086,2465.4,2465.3,7.58500144]
[1728812621826,2.3742086,2465.4,2465.3,7.99069144]
[1728812622225,2.3742086,2465.4,2465.3,7.768059]
[1728812622726,2.3742086,2465.4,2465.3,7.64122153]
[1728812623026,2.3742086,2465.4,2465.3,7.76805945]
[1728812623231,2.3742086,2465.4,2465.3,8.27539756]
[1728812623629,2.90606478,2465.4,2465.3,7.23615696]
[1728812624433,2.90606478,2465.4,2465.3,7.10931904]
[1728812624730,2.90606478,2465.4,2465.3,5.98520102]
[1728812625224,2.90606478,2465.4,2465.3,5.57951102]
[1728812625834,2.90606478,2465.4,2465.3,7.10936605]
[1728812626638,2.90606478,2465.4,2465.3,6.70367605]
[1728812626932,2.90606478,2465.4,2465.3,5.57951102]
[1728812627135,2.90606478,2465.4,2465.3,5.98520102]
[1728812628335,2.90606478,2465.4,2465.3,7.10935832]
[1728812628830,2.90606478,2465.4,2465.3,5.98520102]
[1728812629233,3.10900846,2465.4,2465.3,5.98520102]
[1728812630228,3.10900927,2465.4,2465.3,6.11203844]
[1728812630429,2.90606478,2465.4,2465.3,6.11203844]
[1728812631430,1.51294379,2465.4,2465.3,5.05032742]
[1728812631732,1.51294527,2465.4,2465.3,5.05032742]
[1728812632334,1.51294527,2465.4,2465.3,6.11203844]
[1728812632635,1.79900985,2465.4,2465.3,6.33448031]
[1728812632835,1.79900985,2465.4,2465.3,6.33448771]